bitfinex-derivatives/quotes_ETHF0:USTF0_20251005
["timestamp","ask_amount","ask_price","bid_price","bid_amount"]
[1759657316994,3.2078,4559.2,4559.1,0.4542]
[1759657317298,3.67483801,4559.2,4559.1,1.08293]
[1759657317599,3.67483801,4559.2,4559.1,0.4542]
[1759657317799,3.67483801,4559.2,4559.1,0.6782]
[1759657318291,3.67483801,4559.2,4559.1,0.4542]
[1759657319799,0.39473,4559.1,4558.9,0.234]
[1759657320098,0.46703801,4559.0,4558.9,0.4542]
[1759657320999,0.39477,4558.6,4558.5,0.6244]
[1759657321199,3.67604819,4558.6,4558.5,0.6244]
[1759657321995,3.67604819,4558.6,4557.7,0.00161441]
[1759657321996,3.67604819,4558.6,4558.0,0.6244]
[1759657322203,0.39481,4558.2,4558.1,0.4542]
[1759657322394,3.67604819,4558.2,4558.1,0.4542]
[1759657323303,0.46824819,4558.2,4558.1,0.4542]
[1759657323494,0.39479,4558.5,4558.2,0.39481]
[1759657323795,0.4686392,4558.4,4558.3,0.4542]
[1759657323989,0.39481,4558.2,4558.1,0.4542]
[1759657324394,4.0712492,4558.2,4558.1,0.4542]
[1759657324898,0.39484,4557.9,4557.8,0.4542]
[1759657325100,0.8634792,4557.9,4557.7,0.00161441]
[1759657325296,5.7026392,4557.8,4556.8,0.4542]
[1759657325503,0.39492,4556.9,4556.8,0.4542]
[1759657325694,0.39494,4556.7,4556.6,0.4542]
[1759657325892,0.8635792,4556.7,4556.6,0.4542]
[1759657326096,0.8635792,4556.7,4556.3,0.4542]
[1759657326097,0.39496,4556.5,4556.3,0.4542]
[1759657326295,3.67668148,4556.4,4556.3,0.4561967]
[1759657326499,0.46888148,4556.4,4556.3,0.4561967]
[1759657326900,0.46888148,4556.4,4556.3,0.8511667]
[1759657327404,0.46888148,4556.4,4556.3,0.4561967]
[1759657328000,3.67668148,4556.4,4556.3,0.0019967]
[1759657328198,8.67668148,4556.4,4556.3,0.0019967]
[1759657329596,0.3951,4554.9,4554.5,0.1702]
[1759657329793,0.9876,4555.6,4554.5,0.1702]
[1759657329794,3.60291,4554.8,4554.6,0.4542]
[1759657330199,0.39512,4554.6,4554.5,0.6244]
[1759657330599,0.39772879,4554.6,4554.5,0.62707602]
[1759657330799,0.39772879,4554.6,4554.5,0.00267602]
[1759657331004,0.86487993,4554.6,4554.5,0.00267602]
[1759657331406,0.39772879,4554.6,4554.5,0.00267602]
[1759657331995,5.39772879,4554.6,4554.5,0.00267602]
[1759657332798,0.00260879,4554.6,4554.5,0.62707602]
[1759657333406,0.00260879,4554.6,4554.5,0.00267602]
[1759657333607,0.23660879,4554.6,4554.5,0.00267602]
[1759657333809,5.23660879,4554.6,4554.5,0.00267602]
[1759657334504,0.00260879,4554.6,4554.5,1.02220602]
[1759657334700,0.00260879,4554.6,4554.5,0.62707602]
[1759657335112,0.00260879,4554.6,4554.5,0.00267602]
[1759657335503,0.00260879,4554.6,4554.5,0.45687602]
[1759657335703,0.00260879,4554.6,4554.5,0.00267602]
[1759657337311,0.00260879,4554.6,4554.5,0.42157602]
[1759657338309,5.00260879,4554.6,4554.5,0.00267602]
[1759657340711,5.00260879,4554.6,4554.5,0.42157602]
[1759657340906,0.00260879,4554.6,4554.5,0.59907602]
[1759657341107,0.00260879,4554.6,4554.5,0.00267602]
[1759657341310,0.00260879,4554.6,4554.5,6.02e-06]
[1759657342716,5.00260879,4554.6,4554.5,6.02e-06]
[1759657343617,7.86465047,4554.6,4554.5,6.02e-06]
[1759657343803,9.87866,4554.4,4553.1,0.4189]
[1759657344117,3.60304,4553.2,4553.1,0.4189]
[1759657344413,3.83704,4553.2,4553.1,0.4189]
[1759657344922,3.83704,4553.2,4553.1,0.42140024]
[1759657345218,3.83704,4553.2,4553.1,0.00250024]
[1759657345402,3.83704,4553.2,4553.1,0.42140024]
[1759657345607,3.83704,4553.2,4553.1,0.00250024]
[1759657346412,0.39526,4553.0,4552.6,0.4189]
[1759657346611,0.62926,4553.0,4552.9,4.26e-06]
[1759657346817,3.49345264,4553.0,4552.9,4.26e-06]
[1759657347312,3.95655805,4553.0,4552.9,0.00236298]
[1759657347517,3.49345264,4553.0,4552.9,2.98e-06]
[1759657347717,3.95655226,4553.0,4552.9,2.98e-06]
[1759657348018,3.49345264,4553.0,4552.9,0.41890298]
[1759657348316,3.49345264,4553.0,4552.9,2.98e-06]
[1759657349520,3.95716096,4553.0,4552.9,2.98e-06]
[1759657349921,1.09296832,4553.0,4552.9,2.98e-06]
[1759657350816,8.98430953,4553.0,4552.9,2.98e-06]
[1759657351320,0.62926,4553.0,4552.9,2.98e-06]
[1759657351518,0.39525,4553.1,4553.0,0.1775]
[1759657351716,0.62925,4553.1,4553.0,0.5872]
[1759657352623,0.234,4553.1,4553.0,0.5872]
[1759657353417,0.234,4553.1,4552.9,2.98e-06]
[1759657353418,0.39526,4553.0,4552.9,2.98e-06]
[1759657353621,0.86004569,4553.0,4552.9,2.98e-06]
[1759657354415,0.69878569,4553.0,4552.9,2.98e-06]
[1759657355316,0.46478569,4553.0,4552.9,2.98e-06]
[1759657355520,0.69878569,4553.0,4552.9,2.98e-06]
[1759657356319,0.46478569,4553.0,4552.9,2.98e-06]
[1759657356512,0.46478569,4553.0,4552.9,0.40970298]
[1759657357018,0.46478569,4553.0,4552.9,0.80497298]
[1759657357219,0.46478569,4553.0,4552.9,5.80497298]
[1759657357608,3.2078,4553.8,4553.5,0.1652]
[1759657357817,0.3952,4553.7,4553.6,0.4097]
[1759657358014,3.2078,4553.8,4553.7,0.4097]
[1759657359715,3.2078,4553.8,4553.7,5.4097]
[1759657362221,3.2078,4554.3,4554.1,0.4097]
[1759657362613,3.2078,4554.3,4554.2,0.4097]
[1759657363425,0.00260879,4554.6,4554.5,0.1652]
[1759657363624,0.00260879,4554.6,4554.5,0.97003]
[1759657363922,0.00260879,4554.6,4554.5,5.97003]
[1759657364924,0.00260879,4554.6,4554.5,5.5749]
[1759657365231,0.1746,4556.0,4554.7,0.98778]
[1759657365425,0.1746,4555.5,4555.0,0.39508]
[1759657365625,0.4352,4555.4,4555.0,0.234]
[1759657365833,0.39507,4555.2,4555.0,0.234]
[1759657366025,0.4352,4555.1,4555.0,0.234]
[1759657366225,0.43729013,4555.1,4555.0,0.234]
[1759657366520,0.00209013,4555.1,4555.0,5.316]
[1759657366722,0.43729013,4555.1,4555.0,5.234]
[1759657367925,0.00209013,4555.1,4555.0,5.234]
[1759657368727,0.43299013,4555.1,4555.0,5.0]
[1759657369028,0.43299013,4555.1,4555.0,5.233]
[1759657369323,0.00209013,4555.1,4555.0,5.233]
[1759657369535,0.00209013,4555.1,4555.0,5.3226]
[1759657371028,3.2078,4555.6,4555.5,0.39504]
[1759657371222,3.2078,4555.6,4555.5,0.71554]
[1759657371524,3.2078,4555.6,4554.6,3.60292]
[1759657371525,0.39509,4555.0,4554.6,3.60292]
[1759657371720,0.1771,4555.0,4554.9,0.39509]
[1759657371923,0.1771,4555.0,4554.6,3.2078]
[1759657372123,4.0338,4554.9,4554.7,0.233]
[1759657372427,0.17980553,4555.0,4554.8,0.3951]
[1759657372629,0.4309,4554.9,4554.8,0.3951]
[1759657372825,0.4309,4554.9,4554.8,0.6281]
[1759657373131,0.17980553,4555.0,4554.8,3.8359]
[1759657373336,0.17980553,4555.0,4554.9,0.233]
[1759657374031,0.4309,4554.9,4554.2,3.2078]
[1759657374234,0.00270553,4555.0,4554.8,0.4826]
[1759657374434,0.43360553,4555.0,4554.9,0.233]
[1759657374728,0.00270553,4555.0,4554.9,0.3205]
[1759657374937,0.00270553,4555.0,4554.9,5.3205]
[1759657375329,5.53e-06,4555.0,4554.9,5.3205]
[1759657375531,3.2078,4555.9,4555.8,0.39502]
[1759657375832,3.2078,4555.9,4555.8,0.71552]
[1759657376036,3.6387,4555.9,4555.8,0.62802]
[1759657376529,3.64121268,4555.9,4555.8,0.233]
[1759657376934,3.64121268,4555.9,4555.7,0.39502]
[1759657377134,3.21031268,4555.9,4555.8,0.233]
[1759657377834,3.64121268,4555.9,4555.8,0.233]
[1759657378428,0.43341268,4555.9,4555.8,0.233]
[1759657378629,0.00251268,4555.9,4555.8,0.233]
[1759657378833,0.00251268,4555.9,4555.8,0.3205]
[1759657379234,0.00251268,4555.9,4555.8,5.3205]
[1759657380335,0.00251268,4555.9,4555.8,8.5283]
[1759657380531,3.2078,4556.6,4555.9,0.085]
[1759657381032,3.2078,4557.2,4556.5,0.47996]
[1759657381337,0.608,4557.0,4556.9,0.39492]
[1759657381532,0.608,4557.5,4557.4,0.39488]
[1759657381733,0.61028592,4557.5,4557.1,0.3949]
[1759657382037,0.608,4557.0,4556.9,0.00264204]
[1759657382234,0.608,4557.0,4556.9,0.23564204]
[1759657382431,0.608,4557.0,4556.9,3.44344204]
[1759657382634,0.17938592,4557.5,4557.4,0.39488]
[1759657382834,0.17938592,4557.5,4557.3,0.39488]
[1759657383033,0.17938592,4557.5,4557.4,0.233]
[1759657383231,0.61028592,4557.5,4557.4,0.233]
[1759657383432,0.4309,4557.4,4557.3,0.39488]
[1759657383635,0.608,4557.0,4556.9,0.00264204]
[1759657383838,0.608,4557.0,4556.9,0.23564204]
[1759657385639,0.4309,4557.4,4557.3,0.39489]
[1759657385832,0.4309,4557.4,4557.3,0.62789]
[1759657386234,0.4309,4557.4,4557.3,0.233]
[1759657387342,0.57425592,4557.5,4556.9,0.39756204]
[1759657387343,0.608,4557.0,4556.9,0.39756204]
[1759657387538,0.608,4557.0,4556.9,0.00264204]
[1759657387842,3.8158,4557.0,4556.9,0.00264204]
[1759657388240,4.2780528,4557.0,4556.9,0.00264204]
[1759657389132,1.0702528,4557.0,4556.9,3.83836204]
[1759657389334,1.00291,4557.0,4556.9,0.00264204]
[1759657389639,0.608,4557.0,4556.9,0.00264204]
[1759657389838,0.608,4557.0,4556.9,4.204e-05]
[1759657390136,0.4309,4555.9,4555.8,0.39501]
[1759657390336,0.1771,4556.0,4555.7,3.2078]
[1759657390545,0.4309,4555.8,4555.7,3.4408]
[1759657390838,0.4309,4555.8,4555.7,3.2078]
[1759657391142,0.4309,4555.8,4555.7,3.44313776]
[1759657392536,0.46330957,4555.8,4555.7,8.44313776]
[1759657392742,0.4309,4556.4,4556.3,0.39497]
[1759657393035,0.89424741,4556.4,4556.3,0.62797]
[1759657393233,0.46334741,4556.4,4556.3,0.62797]
[1759657393437,0.46334741,4556.4,4556.3,0.71567]
[1759657394035,0.4309,4556.8,4556.7,0.39494]
[1759657394248,0.608,4557.0,4556.9,0.39492]
[1759657394544,0.17938592,4557.5,4557.4,0.39488]
[1759657394744,0.64306614,4557.5,4557.4,0.62788]
[1759657395041,0.608,4557.0,4556.9,0.39492]
[1759657395242,0.608,4557.0,4556.9,0.62792]
[1759657395448,0.61028592,4557.5,4557.4,0.39488]
[1759657395645,1.07366324,4557.5,4557.4,0.62788]
[1759657395849,0.61028592,4557.5,4557.4,0.62788]
[1759657396746,0.00228592,4557.5,4557.4,0.71558]
[1759657396942,0.00228592,4557.5,4557.4,5.71558]
[1759657397841,0.00228592,4557.5,4557.4,5.62788]
[1759657398045,0.00228592,4557.5,4557.4,5.70058]
[1759657398946,0.43788592,4557.5,4557.4,0.39488]
[1759657399243,0.60108592,4557.5,4557.4,0.233]
[1759657399448,0.4356,4557.4,4557.3,0.39489]
[1759657399649,0.4356,4557.4,4557.3,0.62789]
[1759657399856,5.92e-06,4557.5,4557.4,0.0727]
[1759657400152,0.4356,4557.4,4557.3,0.39489]
[1759657400351,5.92e-06,4557.5,4557.4,0.0727]
[1759657400652,5.92e-06,4557.5,4557.3,5.62789]
[1759657401454,5.92e-06,4557.5,4557.4,5.0]
[1759657401752,0.43560592,4557.9,4557.8,0.39484]
[1759657402055,0.43560592,4557.9,4557.8,3.60264]
[1759657402250,0.43560592,4557.9,4557.8,3.83564]
[1759657402649,0.43791901,4557.9,4557.8,3.83564]
[1759657402853,0.00231901,4557.9,4557.8,3.90834]
[1759657403053,9.01e-06,4557.9,4557.8,8.90834]
[1759657403548,9.01e-06,4557.9,4557.8,3.2078]
[1759657403744,9.01e-06,4557.9,4557.8,3.4408]
[1759657404148,9.01e-06,4557.9,4557.8,3.2078]
[1759657404358,9.01e-06,4557.9,4557.8,3.4408]
[1759657404549,0.43560901,4557.9,4557.8,3.4408]
[1759657405254,0.43560901,4557.9,4557.8,3.2078]
[1759657405448,0.46138135,4557.9,4557.7,0.39485]
[1759657405755,0.89696611,4557.8,4557.7,0.39485]
[1759657405948,0.89696611,4557.8,4557.7,0.62785]
[1759657407752,0.5988,4557.5,4557.4,0.39488]
[1759657407955,1.06016611,4557.5,4557.4,0.62788]
[1759657409446,0.46136611,4557.5,4557.4,0.62788]
[1759657409652,0.43560901,4557.9,4557.8,0.39484]
[1759657409955,5.62e-06,4557.9,4557.8,3.90834]
[1759657410147,0.4356,4558.4,4558.3,0.3948]
[1759657410456,0.4356,4558.4,4558.3,0.6278]
[1759657411060,0.43844223,4558.4,4558.3,3.8356]
[1759657411661,0.43844223,4558.4,4558.3,0.6278]
[1759657412765,0.00284223,4558.4,4558.3,0.6278]
[1759657412959,0.44664223,4558.4,4558.3,0.3948]
[1759657413163,0.44664223,4558.4,4558.3,0.6278]
[1759657413867,0.44664223,4558.4,4558.3,0.3948]
[1759657414071,0.44664223,4558.4,4558.3,0.6278]
[1759657414567,0.44664223,4558.4,4558.3,0.3948]
[1759657414773,0.44664223,4558.4,4558.3,0.6278]
[1759657415271,0.4438,4558.3,4558.2,3.2078]
[1759657415567,0.9944,4557.8,4557.7,3.3187]
[1759657415768,0.9944,4557.8,4557.7,3.5517]
[1759657416772,0.9944,4557.8,4557.7,3.2078]
[1759657416967,0.9944,4557.8,4557.7,3.4408]
[1759657417466,0.9944,4557.8,4557.7,3.3187]
[1759657417665,0.9944,4557.8,4557.7,3.5517]
[1759657417861,0.6189,4558.0,4557.8,0.39484]
[1759657418067,0.44664223,4558.4,4558.3,0.6166]
[1759657418268,0.71854223,4558.4,4558.3,4.0574]
[1759657419477,0.00284223,4558.4,4558.3,3.9049]
[1759657420670,0.4438,4558.8,4558.7,0.39477]
[1759657420874,0.4438,4558.8,4558.7,0.62777]
[1759657421278,0.4438,4558.8,4558.7,0.39477]
[1759657421578,0.4438,4558.8,4558.7,0.62777]
[1759657421873,0.44550308,4558.8,4558.7,0.39477]
[1759657422176,0.44550308,4558.8,4558.7,0.62777]
[1759657423276,0.44550308,4558.8,4558.7,0.39477]
[1759657423686,0.44550308,4558.8,4558.7,0.62777]
[1759657424183,3.08e-06,4558.8,4558.7,1.04777]
[1759657424370,0.1632,4559.5,4559.4,0.3947]
[1759657424572,0.1632,4559.5,4559.4,0.6277]
[1759657424978,0.1632,4559.5,4559.2,3.2078]
[1759657425276,0.5506,4559.4,4559.3,0.62771]
[1759657425480,0.5506,4559.4,4559.3,0.233]
[1759657426268,0.9944,4559.4,4559.3,0.5258]
[1759657426571,0.9944,4559.4,4559.3,0.8137]
[1759657426772,0.5506,4559.4,4559.2,3.60460619]
[1759657426973,0.4438,4559.3,4559.2,3.20988619]
[1759657427181,0.9944,4559.3,4559.2,3.74038619]
[1759657427376,0.9944,4559.3,4559.2,4.02808619]
[1759657427676,0.9944,4559.3,4559.2,3.44288619]
[1759657428180,0.9944,4559.3,4559.2,3.74038619]
[1759657428581,0.9944,4559.3,4559.2,4.45588619]
[1759657428877,0.42286832,4559.5,4559.4,1.013]
[1759657429082,0.42286832,4559.5,4559.4,1.246]
[1759657429877,0.00246832,4559.5,4559.4,1.246]
[1759657430384,0.74626832,4559.5,4559.4,0.5295]
[1759657430977,0.74626832,4559.5,4559.0,0.4278]
[1759657430978,0.9868,4559.3,4558.3,2.3182]
[1759657431177,0.98683,4559.1,4558.5,0.1711]
[1759657431477,0.98683,4559.1,4557.5,0.1711]
[1759657431478,0.39486,4557.6,4557.5,0.1711]
[1759657431684,0.39486,4557.6,4556.6,0.058]
[1759657431685,0.39493,4556.9,4556.6,0.058]
[1759657431873,0.4518702,4556.8,4556.6,0.058]
[1759657432185,3.2078,4556.7,4556.6,0.06003489]
[1759657432385,4.0546102,4556.7,4556.6,0.06003489]
[1759657432581,3.6596702,4556.7,4556.6,0.00203489]
[1759657432884,8.6596702,4556.7,4556.6,0.00203489]
[1759657433381,8.6596702,4556.7,4556.6,0.42983489]
[1759657433784,0.39499,4556.1,4556.0,0.1711]
[1759657434077,3.60279,4556.1,4556.0,0.1711]
[1759657434982,3.21010904,4556.1,4556.0,0.17338207]
[1759657436087,3.21010904,4556.1,4556.0,0.60118207]
[1759657438488,3.2078,4556.7,4556.0,5.17338207]
[1759657438685,3.2078,4557.8,4557.1,0.4278]
[1759657438989,3.2078,4557.6,4557.5,0.5989]
[1759657439389,8.60266,4557.6,4557.5,0.5989]
[1759657439683,0.3949,4557.2,4557.1,0.4278]
[1759657439888,5.0,4557.2,4557.0,0.1711]
[1759657440089,5.0,4557.2,4557.1,0.4278]
[1759657440287,8.2078,4557.2,4557.1,0.4278]
[1759657441690,3.2078,4557.2,4557.1,0.4278]
[1759657442385,8.4418,4557.2,4556.0,0.60118207]
[1759657442689,0.39498,4556.2,4556.1,0.4278]
[1759657443092,3.2078,4556.3,4556.1,0.4278]
[1759657443884,3.2078,4556.3,4556.2,0.4278]
[1759657444581,8.2078,4556.3,4556.2,0.4278]
[1759657444788,0.39498,4556.2,4556.0,2.07e-06]
[1759657444984,0.236,4556.1,4556.0,2.07e-06]
[1759657446081,5.236,4556.1,4556.0,2.07e-06]
[1759657446290,0.39508,4555.1,4554.0,0.2011]
[1759657446486,3.4438,4555.1,4553.5,0.1711]
[1759657446681,3.2078,4553.7,4553.6,0.4278]
[1759657447386,3.21009855,4553.7,4553.6,0.42991392]
[1759657450591,3.21009855,4553.7,4553.6,0.82512392]
[1759657450793,0.00229855,4553.7,4553.6,5.82512392]
[1759657450994,0.00229855,4553.7,4553.6,5.66591392]
[1759657451196,0.00229855,4553.7,4553.6,0.42991392]
[1759657451892,0.00229855,4553.7,4553.6,5.42991392]
[1759657452695,0.00229855,4553.7,4553.6,0.42991392]
[1759657452900,0.00229855,4553.7,4553.6,0.82512392]
[1759657453095,0.00229855,4553.7,4553.6,5.82512392]
[1759657453898,3.2078,4554.2,4554.0,0.1711]
[1759657454093,3.2078,4554.2,4554.1,0.82296]
[1759657454395,3.2078,4554.2,4554.1,0.4278]
[1759657454695,3.2078,4554.2,4554.1,0.6638]
[1759657454889,3.2100763,4554.2,4554.1,0.6638]
[1759657455697,3.2100763,4554.2,4554.1,0.4278]
[1759657457400,0.39518,4554.0,4553.7,0.4338]
[1759657457597,3.6052363,4554.2,4553.6,0.00211392]
[1759657457803,0.39517,4554.1,4553.7,0.4338]
[1759657458100,0.39517,4554.1,4551.6,3.2078]
[1759657458101,0.98794,4554.0,4551.6,3.2078]
[1759657458303,3.2078,4551.7,4551.6,0.4338]
[1759657458695,0.241,4552.0,4551.6,0.4338]
[1759657458892,3.2078,4551.7,4551.6,0.4338]
[1759657459097,3.2078,4551.7,4551.6,0.43565014]
[1759657461203,3.2078,4551.7,4551.6,0.83103014]
[1759657461406,3.2078,4552.3,4552.1,0.4338]
[1759657461699,3.2078,4552.3,4552.0,0.1877]
[1759657461700,3.2078,4552.3,4552.2,0.4338]
[1759657462499,3.2078,4552.8,4552.5,0.1877]
[1759657462808,0.48166342,4552.7,4552.6,0.4338]
[1759657463605,3.2078,4552.8,4552.7,0.39529]
[1759657463907,3.2078,4552.8,4552.7,0.82909]
[1759657464104,3.2078,4552.8,4552.7,0.4338]
[1759657465003,3.2078,4552.8,4552.7,0.82909]
[1759657465205,3.2078,4552.8,4552.7,0.4338]
[1759657465808,8.2078,4552.8,4552.7,0.4338]
[1759657466003,3.2078,4552.8,4552.5,0.1877]
[1759657466210,0.63529,4552.7,4552.6,0.4338]
[1759657466507,0.98825,4552.6,4551.6,0.43565014]
[1759657466709,3.60317,4551.7,4551.6,0.43565014]
[1759657467113,3.2078,4551.7,4551.6,0.43565014]
[1759657467709,3.2078,4551.7,4551.6,0.83103014]
[1759657468414,3.60317,4551.7,4551.6,0.43565014]
[1759657468710,3.2078,4551.7,4551.6,0.43565014]
[1759657469013,3.84317,4551.7,4551.6,0.43565014]
[1759657469216,4.32209442,4551.7,4551.6,0.43565014]
[1759657470113,4.32209442,4551.7,4551.6,0.00185014]
[1759657470611,0.39542,4551.1,4551.0,0.1877]
[1759657470907,0.63542,4551.1,4551.0,0.1877]
[1759657471110,0.24,4551.1,4551.0,0.6215]
[1759657471508,0.24,4551.1,4551.0,0.62432777]
[1759657472309,3.2078,4551.7,4551.5,0.1847]
[1759657472611,3.2078,4551.7,4551.6,0.475]
[1759657472818,4.08219115,4551.7,4551.6,0.475]
[1759657473013,8.68682115,4551.7,4551.0,0.19052777]
[1759657473210,0.39542,4551.2,4551.1,0.475]
[1759657473408,0.87444115,4551.2,4551.1,0.475]
[1759657474014,0.47902115,4551.2,4551.1,0.475]
[1759657475016,1.54644496,4552.5,4552.1,0.475]
[1759657475211,3.2078,4552.7,4552.6,0.475]
[1759657475415,3.2078,4552.7,4552.1,0.475]
[1759657475813,3.2078,4552.2,4552.1,0.475]
[1759657476513,3.2078,4552.7,4552.6,0.475]
[1759657477011,0.39533,4552.2,4552.0,0.6597]
[1759657477312,3.2078,4552.1,4552.0,0.6597]
[1759657477718,0.241,4552.4,4552.1,0.475]
[1759657478017,0.241,4552.4,4552.2,0.475]
[1759657478317,0.63632,4552.4,4552.2,0.475]
[1759657478520,0.241,4552.4,4552.1,0.475]
[1759657478713,3.2078,4552.6,4552.0,0.6597]
[1759657478912,3.2078,4552.6,4552.0,1.05504]
[1759657479307,3.2078,4552.1,4552.0,0.6597]
[1759657479508,3.2078,4552.1,4551.6,0.475]
[1759657479711,3.2078,4552.1,4552.0,0.6597]
[1759657480719,3.2078,4552.7,4552.6,0.87029]
[1759657481018,0.39521,4553.6,4553.0,0.6597]
[1759657481224,3.2078,4553.1,4553.0,0.6597]
[1759657481409,3.2078,4553.6,4553.5,0.6597]
[1759657483221,3.2078,4553.6,4553.5,0.1847]
[1759657483419,3.2078,4553.6,4553.0,0.6597]
[1759657483420,8.4498,4553.6,4553.0,0.6597]
[1759657483621,3.2078,4553.1,4553.0,0.6597]
[1759657484017,3.2078,4553.1,4553.0,1.05496]
[1759657484916,3.2078,4553.6,4553.5,0.6597]
[1759657487022,3.66961093,4553.6,4553.2,0.39524]
[1759657487222,0.46181093,4553.5,4553.2,0.39524]
[1759657487421,0.46181093,4553.5,4553.3,0.4745]
[1759657487621,0.46181093,4553.5,4553.4,0.86972]
[1759657488420,0.46181093,4553.5,4553.4,0.4745]
[1759657489320,3.4510763,4554.2,4553.8,0.4745]
[1759657489513,0.46194685,4554.1,4554.0,0.6602]
[1759657490319,3.2100763,4554.2,4554.1,0.39516]
[1759657490520,3.2100763,4554.2,4554.1,0.4745]
[1759657490521,3.67192765,4554.2,4554.1,0.4745]
[1759657490715,3.67192765,4554.2,4554.1,0.86966]
[1759657490914,3.2100763,4554.2,4554.1,0.86966]
[1759657491127,3.2100763,4554.2,4553.6,0.4745]
[1759657491419,0.39521,4553.6,4553.2,0.4745]
[1759657491618,0.39522,4553.5,4553.1,0.4745]
[1759657491827,3.60304,4553.2,4553.1,0.4745]
[1759657492022,3.60304,4553.2,4552.7,0.4745]
[1759657492231,0.39528,4552.8,4552.5,0.6592]
[1759657492523,3.2078,4552.7,4552.6,0.4745]
[1759657492723,3.2078,4552.7,4552.5,0.1847]
[1759657492924,3.2078,4552.7,4552.6,0.4745]
[1759657495527,3.2078,4553.2,4553.1,0.4745]
[1759657495725,3.66937674,4553.2,4553.1,0.4745]
[1759657496125,3.2078,4553.2,4553.1,0.4745]
[1759657498032,3.2078,4553.7,4553.5,0.1857]
[1759657498231,0.46162857,4553.6,4553.5,0.6602]
[1759657498427,0.98781,4554.7,4553.5,0.6602]
[1759657498428,3.2078,4554.4,4554.0,0.1857]
[1759657498733,0.39515,4554.3,4554.1,0.4745]
[1759657498935,3.2078,4554.4,4554.1,0.4745]
[1759657498936,0.46408241,4554.2,4554.1,0.4745]
[1759657499334,0.0022763,4554.2,4554.1,0.4745]
[1759657501131,5.2422763,4554.2,4553.5,0.6602]
[1759657501438,3.2078,4553.8,4553.5,0.1857]
[1759657501635,3.60299,4553.8,4553.5,0.58092]
[1759657501932,0.0022763,4554.2,4554.1,0.86966]
[1759657502140,0.0022763,4554.2,4554.1,0.4745]
[1759657502332,0.46425344,4554.2,4554.1,0.4745]
[1759657502837,0.0022763,4554.2,4554.1,0.4745]
[1759657503532,0.0022763,4554.2,4554.1,5.4745]
[1759657503727,0.0022763,4554.2,4554.1,5.7145]
[1759657505132,0.0022763,4554.2,4554.1,5.4745]
[1759657505329,0.0022763,4554.2,4554.1,0.7145]
[1759657506439,0.0022763,4554.2,4554.1,5.7145]
[1759657507742,0.0022763,4554.2,4554.1,0.7135]
[1759657509838,0.39507,4555.2,4555.0,0.1857]
[1759657510042,3.60286,4555.4,4555.1,0.4745]
[1759657510336,0.85730697,4555.3,4555.1,0.86957]
[1759657510640,3.2078,4555.4,4555.3,0.4745]
[1759657510833,3.6717181,4555.4,4555.3,0.47666037]
[1759657511242,3.6717181,4555.4,4555.3,0.00216037]
[1759657512936,11.78897822,4555.4,4554.0,0.1857]
[1759657513239,3.2078,4554.1,4554.0,0.6602]
[1759657513632,3.66990622,4554.1,4554.0,0.6602]
[1759657513833,3.2078,4554.1,4554.0,0.66255198]
[1759657514238,3.66995486,4554.1,4554.0,0.66255198]
[1759657516337,0.4622374,4554.1,4554.0,0.18805198]
[1759657516636,3.6700371,4554.1,4554.0,0.18805198]
[1759657516948,8.9080371,4554.1,4554.0,0.00235198]
[1759657517534,0.39522,4553.4,4553.3,0.4745]
[1759657517744,0.8574571,4553.4,4553.3,0.4745]
[1759657518541,0.8574571,4553.4,4553.3,0.47694833]
[1759657519244,0.4622371,4553.4,4553.3,0.47694833]
[1759657519653,0.98809,4553.3,4552.2,0.4619]
[1759657519843,3.60312,4552.3,4552.2,0.4619]
[1759657520044,0.39534,4552.1,4552.0,0.6405]
[1759657520342,0.8575771,4552.1,4552.0,0.6405]
[1759657520537,6.09799446,4552.1,4552.0,0.00193477]
[1759657520738,5.70265446,4552.1,4552.0,0.00193477]
[1759657521545,0.39542,4551.2,4551.1,0.4619]
[1759657521747,0.39548,4550.5,4549.9,0.39552]
[1759657521953,3.2078,4550.1,4550.0,0.6405]
[1759657522450,3.2078,4550.1,4550.0,0.64326196]
[1759657523342,3.6722,4550.1,4550.0,0.00276196]
[1759657524142,0.2236,4549.7,4548.1,3.2078]
[1759657524347,0.2236,4549.7,4548.0,0.1786]
[1759657524348,0.39563,4548.7,4548.0,0.1786]
[1759657524543,3.2078,4548.3,4548.0,0.1786]
[1759657525045,3.20983237,4548.3,4548.0,0.18049306]
[1759657525250,3.20983237,4548.3,4548.1,0.4619]
[1759657525545,3.20983237,4548.3,4548.0,0.18049306]
[1759657525746,0.2236,4548.1,4548.0,0.00189306]
[1759657526340,5.61929,4548.1,4548.0,0.00189306]
[1759657526541,0.39575,4547.4,4546.9,0.47266251]
[1759657526845,3.4295,4547.0,4546.9,0.47266251]
[1759657527238,0.2217,4546.9,4545.4,3.6697]
[1759657527438,0.2217,4546.9,4543.6,0.99019]
[1759657527439,0.3959,4545.6,4544.9,0.4619]
[1759657527639,3.4295,4545.0,4544.9,0.00283753]
[1759657527839,3.56060736,4545.0,4543.6,0.4619]
[1759657528044,3.2078,4543.9,4543.6,0.4619]
[1759657528245,0.39611,4543.2,4542.9,0.02201261]
[1759657528448,0.2189,4542.9,4541.4,3.2078]
[1759657528639,3.4267,4541.9,4541.0,0.0037438]
[1759657528845,6.12012595,4542.8,4541.8,0.4619]
[1759657529044,3.2078,4543.3,4542.5,0.1786]
[1759657529241,3.12019267,4543.3,4543.0,0.1786]
[1759657529548,3.2078,4544.4,4543.2,0.4619]
[1759657529745,3.2078,4544.4,4543.0,3.3864]
[1759657529746,3.2078,4543.7,4543.0,0.1786]
[1759657529939,0.238,4543.6,4542.8,0.4619]
[1759657530139,3.2078,4543.1,4542.1,0.4619]
[1759657530340,3.2078,4543.1,4542.5,0.1786]
[1759657530654,3.6647,4544.7,4543.6,0.4619]
[1759657530846,3.2078,4543.7,4543.6,0.4619]
[1759657531347,0.2189,4543.6,4542.8,3.2078]
[1759657531543,3.4458,4543.7,4542.8,3.2078]
[1759657531745,3.4458,4543.7,4543.0,0.1843]